[Event "58th Akiba Rubinstein C 2022"]
[Site "Polanica-Zdroj"]
[Date "2022.08.19"]
[Round "7.11"]
[White "Tchorzewski, Kazimierz"]
[Black "Twarogiel, Tadeusz"]
[Result "1-0"]
[ECO "C00"]
[WhiteElo "1670"]
[BlackElo "1767"]
[Annotator "NA RC"]
[PlyCount "73"]
[EventDate "2022.08.13"]
[EventCountry "POL"]
[SourceTitle "playchess.com"]
[Source "ChessBase"]
[SourceQuality "1"]
[TimeControl "40/5400+30:1800+30"]

1. e4 {[%emt 0:00:01]} e6 {[%emt 0:00:28]} 2. g3 {[%emt 0:03:40]} d5 {[%emt 0:00:06]} 3. Bg2 {[%emt 0:00:05]} Nf6 {[%emt 0:00:40]} 4. Nc3 {[%emt 0:00:33]} Be7 {[%emt 0:04:30]} 5. d3 {[%emt 0:03:25]} c6 {[%emt 0:00:44]} 6. h4 {[%emt 0:03:42]} Nbd7 {[%emt 0:00:52]} 7. a3 {[%emt 0:10:08]} h6 {[%emt 0:01:00]} 8. Nh3 {[%emt 0:04:15]} Qb6 {[%emt 0:01:59]} 9. Qe2 {[%emt 0:06:49]} d4 {[%emt 0:01:12]} 10. Nd1 {[%emt 0:00:25]} e5 {[%emt 0:00:19]} 11. f4 {[%emt 0:02:07]} Bd6 {[%emt 0:01:10]} 12. b3 {[%emt 0:02:31]} Qc7 {[%emt 0:02:52]} 13. Nb2 {[%emt 0:00:41]} b5 14. Bd2 {[%emt 0:02:19]} O-O {[%emt 0:02:57]} 15. f5 {[%emt 0:00:51]} Nh7 {[%emt 0:01:24]} 16. g4 {[%emt 0:00:12]} f6 {[%emt 0:00:47]} 17. g5 {[%emt 0:00:20]} fxg5 {[%emt 0:01:37]} 18. hxg5 {[%emt 0:00:44]} hxg5 {[%emt 0:00:52]} 19. Bxg5 {[%emt 0:04:56]} Ndf6 {[%emt 0:01:32]} 20. Bf3 {[%emt 0:00:11]} Bd7 {[%emt 0:01:19]} 21. Bh5 {[%emt 0:00:08]} Nxh5 {[%emt 0:08:10]} 22. Qxh5 {[%emt 0:00:09]} Be8 {[%emt 0:00:10]} 23. Qh4 {[%emt 0:00:14]} g6 {[%emt 0:00:47]} 24. Bh6 {[%emt 0:04:01]} Be7 {[%emt 0:02:03]} 25. Bg5 {[%emt 0:01:49]} Bd8 {[%emt 0:21:27]} 26. O-O-O {[%emt 0:00:51]} Nxg5 {[%emt 0:04:40]} 27. Nxg5 {[%emt 0:00:26]} Qg7 28. Rdg1 a5 {[%emt 0:13:23]} 29. Qh2 {[%emt 0:02:00]} Bxg5+ {[%emt 0:00:37]} 30. Rxg5 {[%emt 0:00:12]} Ra7 {[%emt 0:00:36]} 31. Rhg1 {[%emt 0:00:53]} Qh7 {[%emt 0:02:49]} 32. Qxe5 {[%emt 0:01:27]} Qe7 {[%emt 0:01:06]} 33. Qxd4 {[%emt 0:00:52]} Rd7 {[%emt 0:00:07]} 34. Qc3 {[%emt 0:01:26]} Qxa3 {[%emt 0:00:33]} 35. Rxg6+ {[%emt 0:01:20]} Bxg6 {[%emt 0:00:29]} 36. Rxg6+ {[%emt 0:00:07]} Kf7 {[%emt 0:00:14]} 37. Rg1 1-0

[Event "58th Akiba Rubinstein C 2022"]
[Site "Polanica-Zdroj"]
[Date "2022.08.19"]
[Round "7.12"]
[White "Wasik, Jozef"]
[Black "Kruczynski, Marek"]
[Result "0-1"]
[ECO "A45"]
[WhiteElo "1631"]
[BlackElo "1651"]
[Annotator "NA RC"]
[PlyCount "90"]
[EventDate "2022.08.13"]
[EventCountry "POL"]
[SourceTitle "playchess.com"]
[Source "ChessBase"]
[SourceQuality "1"]
[TimeControl "40/5400+30:1800+30"]

1. d4 {[%emt 0:00:10]} Nf6 {[%emt 0:00:29]} 2. Nc3 {[%emt 0:00:31]} d5 {[%emt 0:02:45]} 3. Bf4 {[%emt 0:00:37]} c6 {[%emt 0:01:31]} 4. e3 {[%emt 0:00:21]} Bf5 {[%emt 0:02:38]} 5. f3 {[%emt 0:00:31]} Bg6 {[%emt 0:00:34]} 6. g4 {[%emt 0:01:55]} e6 {[%emt 0:01:20]} 7. h4 {[%emt 0:00:41]} h6 {[%emt 0:03:05]} 8. Bd3 {[%emt 0:00:38]} Bxd3 {[%emt 0:04:37]} 9. Qxd3 {[%emt 0:00:08]} b5 {[%emt 0:00:42]} 10. a3 {[%emt 0:02:29]} Nbd7 {[%emt 0:01:32]} 11. Nge2 {[%emt 0:02:19]} Be7 {[%emt 0:01:40]} 12. Ng3 {[%emt 0:02:11]} Nh7 {[%emt 0:06:42]} 13. h5 {[%emt 0:03:41]} Ng5 {[%emt 0:03:58]} 14. e4 {[%emt 0:04:39]} Nb6 {[%emt 0:04:29]} 15. b3 {[%emt 0:11:38]} a6 16. Nce2 {[%emt 0:09:19]} O-O {[%emt 0:09:47]} 17. Bxg5 {[%emt 0:06:39]} hxg5 {[%emt 0:00:43]} 18. O-O {[%emt 0:01:42]} c5 {[%emt 0:02:25]} 19. c3 {[%emt 0:02:20]} c4 {[%emt 0:00:34]} 20. bxc4 {[%emt 0:01:21]} Nxc4 {[%emt 0:00:21]} 21. Ra2 {[%emt 0:02:54]} a5 {[%emt 0:04:22]} 22. a4 {[%emt 0:04:39]} bxa4 {[%emt 0:00:34]} 23. Rfa1 {[%emt 0:04:33]} a3 {[%emt 0:02:17]} 24. Nf1 {[%emt 0:03:08]} Rb8 {[%emt 0:05:38]} 25. Ne3 {[%emt 0:03:00]} Nxe3 {[%emt 0:03:51]} 26. Qxe3 {[%emt 0:00:30]} a4 {[%emt 0:02:41]} 27. Nc1 {[%emt 0:01:42]} Qc7 {[%emt 0:03:46]} 28. Rc2 {[%emt 0:04:50]} Rb2 {[%emt 0:02:52]} 29. Ra2 {[%emt 0:01:29]} Rfb8 {[%emt 0:00:21]} 30. Kg2 {[%emt 0:03:53]} Qc4 {[%emt 0:03:15]} 31. Qd2 {[%emt 0:02:35]} Rb1 {[%emt 0:03:15]} 32. Nd3 {[%emt 0:02:08]} R8b3 {[%emt 0:04:24]} 33. Nc1 {[%emt 0:02:32]} f6 {[%emt 0:02:11]} 34. Nd3 {[%emt 0:00:40]} Kh7 {[%emt 0:03:08]} 35. Nc1 {[%emt 0:00:14]} R1b2 {[%emt 0:04:22]} 36. Kf2 {[%emt 0:04:08]} Kh6 {[%emt 0:01:05]} 37. Kg2 {[%emt 0:00:20]} Bd6 38. exd5 {[%emt 0:02:09]} exd5 {[%emt 0:02:48]} 39. Kg1 {[%emt 0:03:56]} Bf4 {[%emt 0:02:22]} 40. Qd3 {[%emt 0:00:00]} Qxd3 {[%emt 0:00:00]} 41. Nxd3 {[%emt 0:00:29]} Be3+ {[%emt 0:02:09]} 42. Kf1 Rxa2 {[%emt 0:00:32]} 43. Rxa2 {[%emt 0:00:57]} Rxc3 {[%emt 0:00:22]} 44. Nb4 {[%emt 0:01:01]} Bxd4 {[%emt 0:00:26]} 45. Ke2 {[%emt 0:00:42]} Re3+ 0-1

[Event "58th Akiba Rubinstein C 2022"]
[Site "Polanica-Zdroj"]
[Date "2022.08.19"]
[Round "7.13"]
[White "Wrzos, Waldemar"]
[Black "Wielgus, Jerzy"]
[Result "1/2-1/2"]
[ECO "B01"]
[WhiteElo "1610"]
[BlackElo "1832"]
[Annotator "NA RC"]
[PlyCount "77"]
[EventDate "2022.08.13"]
[EventCountry "POL"]
[SourceTitle "playchess.com"]
[Source "ChessBase"]
[SourceQuality "1"]
[TimeControl "40/5400+30:1800+30"]

1. e4 {[%emt 0:00:04]} d5 {[%emt 0:00:10]} 2. exd5 {[%emt 0:00:27]} Nf6 {[%emt 0:00:10]} 3. Nc3 {[%emt 0:00:57]} Nxd5 {[%emt 0:00:14]} 4. Nxd5 {[%emt 0:00:33]} Qxd5 {[%emt 0:00:10]} 5. Nf3 {[%emt 0:00:25]} e5 {[%emt 0:00:10]} 6. d3 {[%emt 0:01:41]} Nc6 {[%emt 0:00:25]} 7. Be2 {[%emt 0:02:01]} Bc5 {[%emt 0:02:50]} 8. O-O {[%emt 0:00:45]} Bf5 {[%emt 0:06:38]} 9. Be3 {[%emt 0:05:00]} Nd4 {[%emt 0:06:23]} 10. Nxd4 {[%emt 0:02:22]} exd4 {[%emt 0:00:44]} 11. Bf3 {[%emt 0:00:41]} Qd7 {[%emt 0:00:27]} 12. Bg5 {[%emt 0:03:39]} O-O {[%emt 0:00:12]} 13. a3 {[%emt 0:05:28]} c6 {[%emt 0:02:13]} 14. Re1 {[%emt 0:01:58]} h6 {[%emt 0:00:25]} 15. Bh4 {[%emt 0:01:58]} Rfe8 {[%emt 0:00:32]} 16. Qd2 {[%emt 0:00:55]} g5 {[%emt 0:01:05]} 17. Bg3 {[%emt 0:00:04]} Bd6 {[%emt 0:05:29]} 18. Bxd6 {[%emt 0:04:06]} Qxd6 {[%emt 0:00:00]} 19. Rxe8+ {[%emt 0:00:25]} Rxe8 {[%emt 0:00:00]} 20. Re1 {[%emt 0:00:11]} Rxe1+ {[%emt 0:03:10]} 21. Qxe1 {[%emt 0:00:01]} Qe6 {[%emt 0:00:14]} 22. Qxe6 {[%emt 0:00:46]} Bxe6 {[%emt 0:00:14]} 23. g4 {[%emt 0:00:28]} Kg7 {[%emt 0:00:46]} 24. Kg2 {[%emt 0:00:15]} Kf6 {[%emt 0:00:14]} 25. Kg3 {[%emt 0:00:18]} Ke5 {[%emt 0:00:16]} 26. Be4 {[%emt 0:01:17]} a5 {[%emt 0:02:10]} 27. c4 f5 {[%emt 0:01:21]} 28. gxf5 {[%emt 0:03:17]} Bxf5 {[%emt 0:00:01]} 29. Bxf5 {[%emt 0:00:13]} Kxf5 {[%emt 0:00:11]} 30. b4 {[%emt 0:01:58]} axb4 {[%emt 0:06:09]} 31. axb4 {[%emt 0:00:02]} b6 {[%emt 0:00:13]} 32. h3 {[%emt 0:02:23]} h5 {[%emt 0:01:21]} 33. f3 {[%emt 0:04:10]} h4+ {[%emt 0:00:24]} 34. Kg2 {[%emt 0:00:31]} Ke5 {[%emt 0:00:15]} 35. Kf1 {[%emt 0:00:35]} Kf5 {[%emt 0:06:47]} 36. Ke2 {[%emt 0:00:58]} Kf6 {[%emt 0:00:04]} 37. Kf2 {[%emt 0:00:42]} Ke5 {[%emt 0:00:06]} 38. Ke2 {[%emt 0:00:16]} Kf4 {[%emt 0:00:05]} 39. Kf2 {[%emt 0:00:03]} 1/2-1/2

[Event "58th Akiba Rubinstein C 2022"]
[Site "Polanica-Zdroj"]
[Date "2022.08.19"]
[Round "7.14"]
[White "Uscinski, Marek"]
[Black "Sobotka, Jan"]
[Result "1/2-1/2"]
[ECO "D03"]
[WhiteElo "1824"]
[BlackElo "1594"]
[Annotator "NA RC"]
[PlyCount "91"]
[EventDate "2022.08.13"]
[EventCountry "POL"]
[SourceTitle "playchess.com"]
[Source "ChessBase"]
[SourceQuality "1"]
[TimeControl "40/5400+30:1800+30"]

1. d4 {[%emt 0:00:02]} d5 {[%emt 0:00:06]} 2. Nf3 {[%emt 0:00:48]} Nf6 {[%emt 0:00:38]} 3. Bg5 Bf5 {[%emt 0:02:43]} 4. Nc3 {[%emt 0:01:33]} e6 {[%emt 0:00:24]} 5. a3 {[%emt 0:00:24]} c5 {[%emt 0:00:44]} 6. e3 {[%emt 0:00:48]} Nc6 {[%emt 0:00:45]} 7. Be2 {[%emt 0:01:42]} Be7 {[%emt 0:00:49]} 8. O-O {[%emt 0:03:36]} O-O {[%emt 0:01:33]} 9. dxc5 {[%emt 0:09:18]} Bxc5 {[%emt 0:00:31]} 10. Nh4 {[%emt 0:00:36]} Bg6 {[%emt 0:00:33]} 11. Nxg6 {[%emt 0:00:17]} hxg6 {[%emt 0:00:13]} 12. Qc1 {[%emt 0:02:20]} Qc7 {[%emt 0:01:14]} 13. Rd1 a6 {[%emt 0:00:51]} 14. Bxf6 {[%emt 0:12:03]} gxf6 {[%emt 0:00:31]} 15. Nb1 {[%emt 0:05:01]} b5 {[%emt 0:05:46]} 16. Nd2 {[%emt 0:01:32]} Kg7 {[%emt 0:00:38]} 17. a4 {[%emt 0:02:58]} b4 {[%emt 0:04:59]} 18. c4 {[%emt 0:04:22]} bxc3 {[%emt 0:05:37]} 19. Qxc3 {[%emt 0:00:54]} Bd6 {[%emt 0:03:22]} 20. Nf3 {[%emt 0:01:59]} Rfc8 {[%emt 0:04:54]} 21. Rac1 {[%emt 0:04:45]} Qb7 {[%emt 0:08:48]} 22. Qd2 {[%emt 0:04:36]} a5 {[%emt 0:07:19]} 23. Bb5 {[%emt 0:00:32]} Bb4 {[%emt 0:02:19]} 24. Qd3 {[%emt 0:02:09]} Bd6 {[%emt 0:07:09]} 25. Rxc6 {[%emt 0:05:07]} Rxc6 {[%emt 0:00:37]} 26. Bxc6 {[%emt 0:00:03]} Qxc6 {[%emt 0:00:23]} 27. b3 {[%emt 0:00:23]} Be5 {[%emt 0:09:39]} 28. h3 {[%emt 0:10:30]} Rb8 {[%emt 0:02:04]} 29. Kf1 {[%emt 0:00:45]} Qb6 {[%emt 0:04:08]} 30. Rb1 {[%emt 0:04:43]} Rc8 {[%emt 0:01:02]} 31. Nd4 {[%emt 0:02:30]} Bxd4 {[%emt 0:01:23]} 32. Qxd4 {[%emt 0:00:04]} Qxd4 {[%emt 0:02:55]} 33. exd4 {[%emt 0:00:02]} Rc2 {[%emt 0:01:05]} 34. Ke1 {[%emt 0:00:31]} e5 {[%emt 0:00:53]} 35. b4 {[%emt 0:01:16]} axb4 {[%emt 0:01:53]} 36. Rxb4 {[%emt 0:00:02]} Ra2 {[%emt 0:03:56]} 37. g3 {[%emt 0:00:41]} e4 {[%emt 0:01:09]} 38. Rb5 {[%emt 0:02:03]} Rxa4 {[%emt 0:00:21]} 39. Rxd5 {[%emt 0:00:03]} Ra2 {[%emt 0:01:53]} 40. Rd8 {[%emt 0:00:00]} f5 {[%emt 0:00:00]} 41. h4 {[%emt 0:04:18]} Kf6 {[%emt 0:02:45]} 42. Rd6+ {[%emt 0:01:08]} Ke7 {[%emt 0:04:29]} 43. Rd5 {[%emt 0:00:09]} Ke6 {[%emt 0:08:02]} 44. Rd8 {[%emt 0:00:12]} Ke7 {[%emt 0:00:48]} 45. Rd5 {[%emt 0:00:03]} Ke6 {[%emt 0:00:18]} 46. Rd8 {[%emt 0:00:28]} 1/2-1/2

[Event "58th Akiba Rubinstein C 2022"]
[Site "Polanica-Zdroj"]
[Date "2022.08.20"]
[Round "8.1"]
[White "Shilov, Sergej"]
[Black "Fikus, Zygmunt"]
[Result "1-0"]
[ECO "C10"]
[WhiteElo "2048"]
[BlackElo "1891"]
[Annotator "NA RC"]
[PlyCount "56"]
[EventDate "2022.08.13"]
[EventCountry "POL"]
[SourceTitle "playchess.com"]
[Source "ChessBase"]
[SourceQuality "1"]
[TimeControl "40/5400+30:1800+30"]

1. e4 {[%emt 0:00:07]} e6 {[%emt 0:00:30]} 2. d4 {[%emt 0:00:20]} d5 {[%emt 0:00:05]} 3. Nc3 {[%emt 0:00:05]} dxe4 {[%emt 0:00:07]} 4. Nxe4 {[%emt 0:00:05]} Be7 {[%emt 0:00:05]} 5. Nf3 {[%emt 0:00:39]} Nd7 6. Bd3 {[%emt 0:00:54]} Ngf6 {[%emt 0:00:17]} 7. Nxf6+ {[%emt 0:01:42]} Bxf6 {[%emt 0:00:09]} 8. Qe2 {[%emt 0:01:43]} c5 {[%emt 0:05:54]} 9. d5 Qe7 {[%emt 0:11:21]} 10. dxe6 {[%emt 0:02:11]} Qxe6 {[%emt 0:00:03]} 11. Qxe6+ {[%emt 0:01:10]} fxe6 {[%emt 0:00:07]} 12. c3 {[%emt 0:01:08]} Rb8 {[%emt 0:01:47]} 13. Bf4 {[%emt 0:04:35]} e5 {[%emt 0:02:42]} 14. Bg3 {[%emt 0:00:02]} b5 {[%emt 0:05:40]} 15. O-O {[%emt 0:06:45]} O-O {[%emt 0:01:09]} 16. Rfe1 {[%emt 0:00:41]} b4 {[%emt 0:02:41]} 17. Nxe5 {[%emt 0:03:31]} Nxe5 {[%emt 0:09:27]} 18. Bxe5 {[%emt 0:00:18]} Bxe5 {[%emt 0:00:02]} 19. Rxe5 {[%emt 0:00:02]} bxc3 {[%emt 0:00:05]} 20. bxc3 {[%emt 0:00:19]} Rb2 {[%emt 0:02:39]} 21. Rxc5 {[%emt 0:02:25]} Be6 {[%emt 0:00:52]} 22. f3 {[%emt 0:07:56]} Rd8 {[%emt 0:01:18]} 23. Bf1 {[%emt 0:01:07]} Rc2 24. Rc7 {[%emt 0:06:02]} Kf8 {[%emt 0:11:02]} 25. Rxa7 {[%emt 0:04:33]} Rxc3 {[%emt 0:00:12]} 26. Re1 {[%emt 0:00:22]} Bg8 {[%emt 0:00:29]} 27. a4 {[%emt 0:01:49]} Rc2 {[%emt 0:01:11]} 28. a5 {[%emt 0:01:14]} Rdd2 {[%emt 0:00:10]} 1-0

[Event "58th Akiba Rubinstein C 2022"]
[Site "Polanica-Zdroj"]
[Date "2022.08.20"]
[Round "8.2"]
[White "Zowada, Kazimierz"]
[Black "Gromczak, Dariusz"]
[Result "0-1"]
[ECO "A40"]
[WhiteElo "2041"]
[BlackElo "1906"]
[Annotator "NA RC"]
[PlyCount "60"]
[EventDate "2022.08.13"]
[EventCountry "POL"]
[SourceTitle "playchess.com"]
[Source "ChessBase"]
[SourceQuality "1"]
[TimeControl "40/5400+30:1800+30"]

1. d4 g6 {[%emt 0:00:29]} 2. Nf3 {[%emt 0:00:25]} Bg7 {[%emt 0:00:17]} 3. e4 {[%emt 0:01:14]} a6 4. Bd3 {[%emt 0:00:32]} d6 {[%emt 0:00:48]} 5. c3 {[%emt 0:01:42]} Nd7 {[%emt 0:03:34]} 6. O-O {[%emt 0:02:19]} e6 {[%emt 0:00:51]} 7. Bg5 {[%emt 0:01:04]} Ne7 {[%emt 0:00:51]} 8. Qd2 {[%emt 0:03:32]} h6 9. Be3 {[%emt 0:01:39]} b6 {[%emt 0:02:13]} 10. c4 {[%emt 0:00:36]} c5 {[%emt 0:08:45]} 11. Nc3 {[%emt 0:01:52]} Nc6 {[%emt 0:03:07]} 12. d5 Nd4 {[%emt 0:06:58]} 13. dxe6 {[%emt 0:12:52]} fxe6 {[%emt 0:06:01]} 14. Bf4 {[%emt 0:01:22]} e5 {[%emt 0:03:02]} 15. Be3 {[%emt 0:04:45]} O-O {[%emt 0:03:35]} 16. Ne1 {[%emt 0:03:49]} g5 {[%emt 0:05:21]} 17. Nd5 {[%emt 0:10:31]} Nf6 {[%emt 0:02:04]} 18. h4 {[%emt 0:01:42]} Nxd5 {[%emt 0:04:40]} 19. exd5 {[%emt 0:00:28]} g4 {[%emt 0:10:38]} 20. Bxh6 {[%emt 0:08:38]} Qxh4 {[%emt 0:02:02]} 21. Bg5 {[%emt 0:00:12]} Qh5 {[%emt 0:01:25]} 22. Bh6 Qh4 {[%emt 0:00:00]} 23. Bg5 {[%emt 0:01:00]} Qh5 {[%emt 0:01:00]} 24. Be7 {[%emt 0:00:54]} Qh4 {[%emt 0:00:00]} 25. Bg5 {[%emt 0:00:06]} Qh5 {[%emt 0:01:00]} 26. Be7 {[%emt 0:00:54]} Bh6 {[%emt 0:05:51]} 27. Qd1 {[%emt 0:02:39]} Bg7 {[%emt 0:00:00]} 28. Qd2 {[%emt 0:00:00]} Bh6 {[%emt 0:01:00]} 29. Qd1 {[%emt 0:01:00]} Rf3 {[%emt 0:11:16]} 30. Be4 {[%emt 0:07:06]} g3 {[%emt 0:00:35]} 0-1

[Event "58th Akiba Rubinstein C 2022"]
[Site "Polanica-Zdroj"]
[Date "2022.08.20"]
[Round "8.3"]
[White "Gromada, Andrzej"]
[Black "Marusenko, Petr"]
[Result "0-1"]
[ECO "B10"]
[WhiteElo "1680"]
[BlackElo "2075"]
[Annotator "NA RC"]
[PlyCount "93"]
[EventDate "2022.08.13"]
[EventCountry "POL"]
[SourceTitle "playchess.com"]
[Source "ChessBase"]
[SourceQuality "1"]
[TimeControl "40/5400+30:1800+30"]

1. e4 {[%emt 0:00:15]} c6 {[%emt 0:00:00]} 2. c4 {[%emt 0:00:12]} d5 {[%emt 0:00:00]} 3. exd5 {[%emt 0:00:08]} cxd5 {[%emt 0:00:00]} 4. cxd5 {[%emt 0:00:45]} Nf6 5. Nc3 {[%emt 0:01:14]} Nxd5 {[%emt 0:00:06]} 6. Nf3 {[%emt 0:00:39]} Nxc3 {[%emt 0:00:34]} 7. bxc3 {[%emt 0:00:08]} g6 {[%emt 0:00:07]} 8. Bc4 {[%emt 0:01:52]} Bg7 {[%emt 0:00:08]} 9. d4 {[%emt 0:02:16]} O-O {[%emt 0:00:06]} 10. O-O {[%emt 0:01:00]} Nc6 {[%emt 0:00:44]} 11. h3 Qc7 {[%emt 0:10:43]} 12. Bd3 {[%emt 0:09:44]} Na5 {[%emt 0:00:58]} 13. Bc4 {[%emt 0:00:00]} Nc6 {[%emt 0:00:02]} 14. Bd3 {[%emt 0:01:00]} Na5 {[%emt 0:00:58]} 15. Bc4 {[%emt 0:00:00]} Nc6 {[%emt 0:00:02]} 16. Bd3 {[%emt 0:01:00]} Na5 {[%emt 0:00:58]} 17. Bg5 {[%emt 0:06:40]} Nc6 {[%emt 0:00:02]} 18. Bc1 {[%emt 0:00:00]} Na5 {[%emt 0:00:58]} 19. Bg5 {[%emt 0:00:00]} Be6 {[%emt 0:04:16]} 20. Bc1 {[%emt 0:00:00]} Bc8 {[%emt 0:00:00]} 21. Bg5 Be6 {[%emt 0:01:00]} 22. Qe2 {[%emt 0:05:59]} Rfe8 {[%emt 0:00:37]} 23. Rac1 {[%emt 0:14:49]} Bc4 {[%emt 0:04:29]} 24. Rfe1 {[%emt 0:00:32]} Rac8 {[%emt 0:00:43]} 25. Rf1 {[%emt 0:00:28]} Ra8 {[%emt 0:00:17]} 26. Rfe1 {[%emt 0:00:32]} Rac8 {[%emt 0:00:43]} 27. Qe3 {[%emt 0:01:37]} Ra8 {[%emt 0:00:17]} 28. Qe2 {[%emt 0:00:00]} Rac8 {[%emt 0:00:43]} 29. Qe3 {[%emt 0:01:00]} Ra8 {[%emt 0:00:17]} 30. Qe2 {[%emt 0:00:00]} Rac8 {[%emt 0:00:43]} 31. Qe3 {[%emt 0:01:00]} Ra8 {[%emt 0:00:17]} 32. Qe2 {[%emt 0:00:00]} Rac8 {[%emt 0:00:43]} 33. Qe3 {[%emt 0:01:00]} Bxd3 {[%emt 0:03:39]} 34. Qxd3 {[%emt 0:00:03]} Nc4 {[%emt 0:00:27]} 35. Qe4 {[%emt 0:07:07]} Nd6 {[%emt 0:01:12]} 36. Qe3 {[%emt 0:00:00]} Nc4 {[%emt 0:00:00]} 37. Qe4 {[%emt 0:01:00]} Nd6 {[%emt 0:01:00]} 38. Qh4 {[%emt 0:02:11]} Nf5 {[%emt 0:00:45]} 39. Qe4 {[%emt 0:00:00]} e6 {[%emt 0:00:41]} 40. Bf4 {[%emt 0:00:45]} Qc6 {[%emt 0:00:11]} 41. Bg5 {[%emt 0:29:04]} Qc7 {[%emt 0:30:49]} 42. Bf4 {[%emt 0:01:56]} Qc6 {[%emt 0:00:11]} 43. Bg5 {[%emt 0:00:00]} Qc7 {[%emt 0:00:49]} 44. Bf4 {[%emt 0:01:00]} Qc6 {[%emt 0:00:11]} 45. Qd3 {[%emt 0:04:16]} Qc4 {[%emt 0:00:44]} 46. Qe4 {[%emt 0:01:03]} Bf8 {[%emt 0:12:57]} 47. a3 {[%emt 0:09:59]} 0-1

[Event "58th Akiba Rubinstein C 2022"]
[Site "Polanica-Zdroj"]
[Date "2022.08.20"]
[Round "8.4"]
[White "fainberg, Boris"]
[Black "Kwiecien, Zbigniew"]
[Result "1-0"]
[ECO "E73"]
[WhiteElo "2015"]
[BlackElo "1937"]
[Annotator "NA RC"]
[PlyCount "152"]
[EventDate "2022.08.13"]
[EventCountry "POL"]
[SourceTitle "playchess.com"]
[Source "ChessBase"]
[SourceQuality "1"]
[TimeControl "40/5400+30:1800+30"]

1. d4 {[%emt 0:00:07]} Nf6 {[%emt 0:00:16]} 2. c4 {[%emt 0:00:04]} g6 {[%emt 0:00:16]} 3. Nc3 {[%emt 0:00:07]} Bg7 {[%emt 0:00:20]} 4. e4 {[%emt 0:00:05]} d6 {[%emt 0:00:36]} 5. Be2 O-O {[%emt 0:00:56]} 6. Bg5 {[%emt 0:00:21]} h6 {[%emt 0:05:32]} 7. Be3 {[%emt 0:00:17]} Kh7 {[%emt 0:15:27]} 8. g4 {[%emt 0:15:04]} Rh8 {[%emt 0:00:30]} 9. h4 {[%emt 0:00:00]} Kg8 {[%emt 0:02:55]} 10. f3 {[%emt 0:16:11]} c6 {[%emt 0:01:27]} 11. Qc2 {[%emt 0:03:40]} Na6 {[%emt 0:00:00]} 12. Qd1 {[%emt 0:00:00]} Nb8 {[%emt 0:01:00]} 13. Qc2 {[%emt 0:01:00]} Na6 {[%emt 0:00:00]} 14. Qd1 {[%emt 0:00:00]} Nb8 {[%emt 0:01:00]} 15. Qc2 {[%emt 0:01:00]} Na6 {[%emt 0:00:00]} 16. Qd1 {[%emt 0:00:00]} Nb8 {[%emt 0:01:00]} 17. Qc2 {[%emt 0:01:00]} Na6 {[%emt 0:00:00]} 18. Qd1 {[%emt 0:00:00]} Nb8 {[%emt 0:01:00]} 19. Qc2 {[%emt 0:01:00]} Na6 {[%emt 0:03:47]} 20. Rd1 {[%emt 0:08:33]} Qc7 {[%emt 0:01:36]} 21. Ra1 {[%emt 0:00:00]} Qd8 {[%emt 0:00:00]} 22. Rd1 {[%emt 0:01:00]} Qc7 {[%emt 0:01:00]} 23. Qb1 {[%emt 0:04:02]} Qd8 {[%emt 0:00:00]} 24. Qc2 {[%emt 0:00:00]} Qc7 {[%emt 0:01:00]} 25. Qb1 Bd7 {[%emt 0:01:37]} 26. Nh3 {[%emt 0:03:30]} Bc8 {[%emt 0:00:00]} 27. Ng1 {[%emt 0:00:30]} Bd7 {[%emt 0:01:00]} 28. Nh3 {[%emt 0:00:30]} Bc8 {[%emt 0:00:00]} 29. Ng1 {[%emt 0:00:30]} Bd7 {[%emt 0:01:00]} 30. Nh3 {[%emt 0:00:30]} e5 {[%emt 0:11:51]} 31. d5 {[%emt 0:05:21]} c5 {[%emt 0:00:30]} 32. Nf2 {[%emt 0:03:01]} h5 {[%emt 0:01:58]} 33. g5 {[%emt 0:00:25]} Ne8 {[%emt 0:00:04]} 34. a3 {[%emt 0:02:54]} Kh7 {[%emt 0:08:57]} 35. Bf1 {[%emt 0:00:57]} Rf8 {[%emt 0:00:00]} 36. Be2 {[%emt 0:00:03]} Rh8 {[%emt 0:01:00]} 37. Bf1 {[%emt 0:00:57]} Rf8 {[%emt 0:00:00]} 38. Be2 {[%emt 0:00:03]} Rh8 {[%emt 0:01:00]} 39. Bf1 {[%emt 0:00:57]} Rf8 {[%emt 0:01:06]} 40. Bh3 {[%emt 0:03:29]} Rd8 {[%emt 0:02:08]} 41. Ke2 {[%emt 0:32:25]} Nb8 {[%emt 0:31:33]} 42. Nb5 {[%emt 0:07:14]} Na6 {[%emt 0:00:00]} 43. Nc3 {[%emt 0:00:00]} Nb8 {[%emt 0:01:00]} 44. Nb5 {[%emt 0:01:00]} Bxb5 {[%emt 0:03:22]} 45. cxb5 {[%emt 0:00:04]} Qa5 {[%emt 0:00:02]} 46. Qd3 {[%emt 0:00:31]} Nc7 {[%emt 0:00:17]} 47. b4 {[%emt 0:07:40]} cxb4 {[%emt 0:01:46]} 48. axb4 {[%emt 0:00:02]} Qxb5 {[%emt 0:06:24]} 49. Bxa7 {[%emt 0:01:00]} Nba6 {[%emt 0:01:25]} 50. Be3 Nb8 {[%emt 0:00:30]} 51. Ba7 {[%emt 0:01:00]} Nba6 {[%emt 0:00:00]} 52. Be3 Nb8 {[%emt 0:01:00]} 53. Ba7 {[%emt 0:01:00]} Nba6 54. Rb1 {[%emt 0:02:00]} Ra8 {[%emt 0:01:45]} 55. Be3 {[%emt 0:00:31]} Rad8 {[%emt 0:00:00]} 56. Ba7 {[%emt 0:00:29]} Ra8 {[%emt 0:01:00]} 57. Be3 {[%emt 0:00:31]} Rad8 {[%emt 0:00:00]} 58. Ba7 {[%emt 0:00:29]} Ra8 {[%emt 0:01:00]} 59. Be3 {[%emt 0:00:00]} f5 {[%emt 0:06:47]} 60. Rhc1 {[%emt 0:03:18]} fxe4 {[%emt 0:03:59]} 61. fxe4 {[%emt 0:00:37]} Nxb4 {[%emt 0:07:11]} 62. Qxb5 {[%emt 0:04:24]} Ra2+ {[%emt 0:00:28]} 63. Kf1 {[%emt 0:06:07]} Raa8 64. Ke2 {[%emt 0:00:00]} Ra2+ {[%emt 0:01:00]} 65. Kf1 {[%emt 0:01:00]} Nxb5 {[%emt 0:06:18]} 66. Rxb4 {[%emt 0:00:08]} Nd4 {[%emt 0:00:00]} 67. Rbb1 {[%emt 0:00:58]} Nb5 68. Rb4 {[%emt 0:00:02]} Nd4 {[%emt 0:00:00]} 69. Rbc4 {[%emt 0:03:07]} Nb5 {[%emt 0:00:00]} 70. Rb4 {[%emt 0:00:00]} Nd4 {[%emt 0:00:00]} 71. Rbc4 {[%emt 0:01:00]} Nb5 {[%emt 0:00:00]} 72. Rb4 {[%emt 0:00:00]} Nd4 {[%emt 0:00:00]} 73. Rbc4 {[%emt 0:00:00]} b5 74. Rc8 {[%emt 0:01:44]} Rf3 {[%emt 0:06:22]} 75. Bxd4 {[%emt 0:01:43]} exd4 {[%emt 0:00:03]} 76. R1c2 {[%emt 0:00:24]} d3 1-0